bitfinex-derivatives/quotes_SOLF0:USTF0_20251201
["timestamp","ask_amount","ask_price","bid_price","bid_amount"]
[1764599738409,3.4,126.6,126.52,110.6717]
[1764599738614,3.4,126.6,126.53,7.1138]
[1764599739212,0.05358581,126.58,126.55,0.05725162]
[1764599739410,3.45358581,126.58,126.55,0.05725162]
[1764599739721,0.05358581,126.58,126.55,0.05725162]
[1764599739905,3.45358581,126.58,126.55,0.05725162]
[1764599741311,10.5127,126.56,126.47,7.1172]
[1764599741518,3.4,126.55,126.44,138.7752]
[1764599742115,3.4,126.54,126.45,7.1184]
[1764599742326,3.4,126.5,126.48,0.05567726]
[1764599743017,3.4,126.49,126.39,7.20234241]
[1764599743213,3.4,126.49,126.38,120.46751406]
[1764599743214,3.4,126.49,126.38,138.8293]
[1764599743405,3.4,126.49,126.39,110.781]
[1764599743812,0.05185638,126.45,126.43,0.05411984]
[1764599744015,3.4,126.45,126.39,7.1218]
[1764599744207,3.45972284,126.45,126.43,0.05064374]
[1764599744413,3.45972284,126.45,126.37,7.1229]
[1764599744715,3.4,126.45,126.37,7.1229]
[1764599745314,110.7241,126.47,126.37,7.1229]
[1764599745315,3.45409586,126.42,126.4,0.05911984]
[1764599745512,3.4,126.42,126.33,118.03544241]
[1764599745712,3.4,126.42,126.33,7.20234241]
[1764599745914,3.4,126.42,126.32,7.20234241]
[1764599746117,3.4,126.42,126.34,110.8301]
[1764599746423,28.04,126.45,126.35,110.821]
[1764599746622,0.05932459,126.39,126.37,0.05491061]
[1764599746817,0.05530629,126.39,126.37,0.06071562]
[1764599747219,3.45530629,126.39,126.37,0.06071562]
[1764599747923,0.05530629,126.39,126.37,0.06071562]
[1764599749422,0.05530629,126.39,126.37,7.18361562]
[1764599749718,35.1589,126.45,126.37,7.18361562]
[1764599749719,7.1189,126.45,126.38,28.04]
[1764599749911,3.25,126.43,126.35,42.36624241]
[1764599750109,3.25,126.43,126.35,90.04]
[1764599750522,3.25,126.43,126.35,97.164]
[1764599750723,0.05918733,126.4,126.38,0.05915664]
[1764599751023,3.30918733,126.4,126.31,14.32874241]
[1764599751226,3.25,126.4,126.31,35.1664]
[1764599751929,3.25,126.4,126.31,28.04]
[1764599752124,0.05447593,126.37,126.34,0.05398587]
[1764599752317,0.05447593,126.37,126.34,7.17838587]
[1764599752714,0.05447593,126.37,126.34,0.05398587]
[1764599754932,3.30447593,126.37,126.34,0.05398587]
[1764599756525,0.05447593,126.37,126.34,0.05398587]
[1764599757522,0.05447593,126.37,126.35,7.124]
[1764599758125,110.7116,126.48,126.38,7.1225]
[1764599758126,10.3688,126.45,126.38,7.1225]
[1764599758532,3.25,126.44,126.34,7.20234241]
[1764599758740,7.1205,126.42,126.35,28.04]
[1764599759031,10.3705,126.42,126.35,28.04]
[1764599759330,3.30201848,126.4,126.37,0.05809561]
[1764599759826,0.05201848,126.4,126.37,0.05809561]
[1764599760334,3.30201848,126.4,126.37,0.05809561]
[1764599760632,0.05201848,126.4,126.37,0.05809561]
[1764599760834,3.25,126.48,126.38,28.04]
[1764599761019,7.1166,126.49,126.41,110.7682]
[1764599761219,110.6491,126.55,126.43,110.7503]
[1764599761425,3.25,126.56,126.46,110.7206]
[1764599761733,3.25,126.52,126.46,7.118]
[1764599761927,0.05383483,126.5,126.48,0.05573982]
[1764599762320,0.00383483,126.5,126.49,35.1763]
[1764599762526,113.8588,126.6,126.49,138.7593]
[1764599762726,3.25,126.59,126.51,110.6817]
[1764599762924,3.25,126.63,126.54,110.6552]
[1764599763127,3.25,126.67,126.56,110.6327]
[1764599763331,3.25,126.67,126.59,110.6113]
[1764599763527,113.7651,126.71,126.62,0.05851859]
[1764599763726,3.25,126.71,126.63,110.5741]
[1764599764125,3.25,126.71,126.63,69.1082]
[1764599764437,113.776,126.69,126.61,28.06]
[1764599764620,3.25,126.69,126.61,28.06]
[1764599764932,3.25,126.69,126.57,110.6253]
[1764599764933,3.30672799,126.66,126.57,110.6253]
[1764599765128,3.25,126.63,126.52,110.6682]
[1764599765333,3.25,126.62,126.51,138.7344]
[1764599765527,113.8566,126.6,126.49,7.1159]
[1764599765730,3.25,126.58,126.47,138.7915]
[1764599765931,3.30117783,126.54,126.51,0.05855342]
[1764599766136,3.30117783,126.54,126.45,7.1185]
[1764599766337,3.25,126.54,126.46,110.7202]
[1764599766730,3.25,126.54,126.43,110.744]
[1764599767132,0.0524552,126.5,126.47,0.0513337]
[1764599767434,3.25,126.58,126.49,110.6976]
[1764599767632,31.33,126.62,126.51,110.6802]
[1764599767936,3.25,126.62,126.53,110.6603]
[1764599768327,0.05935493,126.59,126.56,0.05472226]
[1764599769031,3.30935493,126.59,126.56,0.05472226]
[1764599769334,0.05935493,126.59,126.56,0.05472226]
[1764599769528,0.05935493,126.59,126.57,28.1]
[1764599769729,0.05935493,126.59,126.56,0.05472226]
[1764599769926,3.25,126.67,126.57,110.6295]
[1764599770126,3.25,126.67,126.57,110.629]
[1764599770527,3.25,126.73,126.6,110.6007]
[1764599770728,3.25,126.73,126.62,110.5815]
[1764599770935,0.05945809,126.69,126.66,0.05140555]
[1764599771132,3.30945809,126.69,126.59,28.1]
[1764599771432,3.25,126.69,126.59,138.7081]
[1764599771636,4.62383786,126.74,126.63,110.5743]
[1764599771832,4.62383786,126.74,126.65,110.5571]
[1764599772130,3.25,126.78,126.67,110.5345]
[1764599772343,4.80197486,126.82,126.7,110.5106]
[1764599772536,4.80197486,126.82,126.69,110.5214]
[1764599772537,3.25,126.81,126.72,110.4961]
[1764599772729,6.17508092,126.82,126.72,110.4961]
[1764599772730,4.80197486,126.82,126.75,110.4696]
[1764599772926,4.80197486,126.82,126.76,28.12]
[1764599773131,4.80197486,126.82,126.73,110.484]
[1764599773337,0.05028316,126.79,126.76,0.05250101]
[1764599773832,4.80197486,126.82,126.77,110.4526]
[1764599774132,3.25,126.9,126.79,110.4312]
[1764599774332,3.25,126.9,126.81,110.4176]
[1764599774633,113.5954,126.9,126.78,62.0]
[1764599774842,0.05555389,126.85,126.83,0.0586039]
[1764599775025,3.25,126.89,126.83,0.05919304]
[1764599775231,0.0604542,126.85,126.83,0.05919304]
[1764599775430,113.6996542,126.85,126.76,28.12]
[1764599775730,3.25,126.85,126.76,28.12]
[1764599776035,3.25,126.84,126.76,28.12]
[1764599776335,3.25,126.89,126.77,110.4486]
[1764599776540,3.25,126.89,126.76,138.5789]
[1764599776726,3.3042831,126.84,126.81,0.05697867]
[1764599776927,3.25,126.83,126.74,28.14]
[1764599777738,3.25,126.83,126.65,205.3526]
[1764599777739,3.25,126.8,126.65,94.8]
[1764599778038,0.05828492,126.74,126.71,0.05585164]
[1764599778334,3.25,126.85,126.7,110.5133]
[1764599778536,3.25,126.85,126.74,110.478]
[1764599778732,3.25,126.85,126.75,110.4685]
[1764599778937,3.25,126.83,126.72,28.14]
[1764599779236,3.25,126.83,126.76,0.04995168]
[1764599779237,0.05808074,126.79,126.76,0.04995168]
[1764599779439,3.30808074,126.79,126.76,0.04995168]
[1764599779746,3.25,126.77,126.64,28.14]
[1764599779936,3.25,126.77,126.66,110.5485]
[1764599780537,3.2436649,126.73,126.7,0.0590364]
[1764599780737,0.0536649,126.73,126.7,0.0590364]
[1764599781042,3.2436649,126.73,126.7,0.0590364]
[1764599781244,0.0536649,126.73,126.7,0.0590364]
[1764599781641,113.6052,126.82,126.7,0.0590364]
[1764599781846,3.19,126.86,126.77,110.4542]
[1764599782037,3.19,126.86,126.75,110.4665]
[1764599782231,3.19,126.86,126.76,28.18]
[1764599782439,7.094,126.89,126.77,117.5521]
[1764599782636,0.05343422,126.84,126.82,0.0558323]
[1764599782844,0.05144103,126.84,126.82,0.0558323]
[1764599784244,4.561807,126.94,126.82,140.2232323]
[1764599784435,4.561807,126.94,126.82,138.5874]
[1764599784643,3.19,126.93,126.82,138.5874]
[1764599785151,0.05328958,126.89,126.86,0.05330224]
[1764599785447,3.24328958,126.89,126.77,138.6125]
[1764599785650,3.19,126.89,126.8,110.4261]
[1764599785838,3.19,126.89,126.8,7.0987]
[1764599786337,0.05487842,126.86,126.83,0.060459]
[1764599786539,113.475,126.97,126.84,110.3928]
[1764599786739,113.475,126.97,126.85,110.3827]
[1764599787048,120.5702,126.96,126.86,7.0952]
[1764599787352,110.3595,126.88,126.78,28.18]
[1764599787650,0.05045502,126.84,126.82,0.05566034]
[1764599787944,3.24045502,126.84,126.82,0.05566034]
[1764599788136,0.05045502,126.84,126.75,117.5708]
[1764599788338,110.3835,126.86,126.75,117.5708]
[1764599788646,120.6696,126.86,126.75,117.5708]
[1764599788848,113.5935,126.83,126.72,117.5969]
[1764599789152,0.05595664,126.79,126.76,0.0504944]
[1764599789638,0.05595664,126.79,126.76,117.6149944]
[1764599789841,0.05595664,126.79,126.76,7.1516944]
[1764599790336,0.05595664,126.79,126.76,0.0504944]
[1764599791045,3.19,126.86,126.76,0.0504944]
[1764599791245,3.19,126.86,126.75,117.5707]
[1764599791449,120.675,126.85,126.75,7.1014]
[1764599791648,3.19,126.8,126.69,110.5189]
[1764599791951,3.24291301,126.76,126.73,0.05837802]
[1764599792241,3.19,126.75,126.67,28.2]
[1764599792545,145.09756255,126.81,126.7,110.5153]
[1764599792546,3.19,126.8,126.7,110.5153]
[1764599792739,3.19,126.8,126.68,110.533]
[1764599792940,3.19,126.8,126.7,110.5158]
[1764599793140,3.19,126.8,126.71,221.0126]
[1764599793450,0.0555491,126.76,126.74,0.05766369]
[1764599793639,3.3455491,126.76,126.74,0.05766369]
[1764599793839,3.29,126.74,126.64,7.1077]
[1764599794044,3.29,126.79,126.68,110.5318]
[1764599794349,3.29,126.79,126.69,7.1048]
[1764599794544,3.29,126.78,126.64,110.5679]
[1764599794736,0.05965786,126.72,126.7,0.05260107]
[1764599794940,0.0502739,126.72,126.7,0.05393567]
[1764599795547,3.3402739,126.72,126.62,28.22]
[1764599795739,3.29,126.77,126.64,110.5646]
[1764599795945,3.29,126.81,126.68,110.5292]
[1764599796145,113.7286,126.79,126.64,110.5663]
[1764599796352,3.29,126.78,126.68,110.5304]
[1764599796549,0.05192465,126.74,126.72,0.05867614]
[1764599797341,3.29,126.82,126.72,110.55537614]
[1764599797541,3.29,126.82,126.72,110.4983]
[1764599797746,3.29,126.82,126.74,7.102]
[1764599797945,3.29,126.82,126.73,110.4871]
[1764599798149,3.29,126.82,126.74,110.4753]
[1764599798353,0.05094892,126.79,126.77,0.05482074]
[1764599799258,0.05094892,126.79,126.77,110.50882074]
[1764599799450,0.05094892,126.79,126.77,117.60902074]
[1764599799851,0.05094892,126.79,126.77,0.05482074]
[1764599800054,3.34094892,126.79,126.77,0.05482074]
[1764599800251,3.34094892,126.79,126.7,138.7537]
[1764599800547,3.29,126.78,126.7,28.24]
[1764599801354,3.34127264,126.75,126.73,0.05610016]
[1764599801558,0.05127264,126.75,126.73,0.05610016]
[1764599801758,3.29,126.74,126.67,7.1059]
[1764599802452,10.3908,126.77,126.67,7.1059]
[1764599802655,3.29,126.76,126.71,0.0561425]
[1764599802861,0.05062214,126.73,126.71,0.0561425]
[1764599803159,3.29,126.8,126.71,110.5609425]
[1764599803358,3.29,126.8,126.73,7.1026]
[1764599803557,7.0974,126.83,126.73,110.4892]
[1764599804051,3.29,126.82,126.73,110.4892]
[1764599804259,3.34313608,126.79,126.7,110.5154]
[1764599804458,3.29,126.79,126.7,110.5154]
[1764599805143,3.29,126.79,126.73,0.0540141]
[1764599805343,28.24,126.83,126.73,0.0540141]
[1764599805344,0.05708617,126.76,126.73,0.0540141]
[1764599805544,3.29,126.83,126.75,7.1014]
[1764599805760,3.29,126.83,126.74,110.4769]
[1764599805948,3.29,126.83,126.73,138.7244]
[1764599806860,3.3498119,126.79,126.77,0.05975553]
[1764599807361,3.3498119,126.79,126.69,110.5198]
[1764599807362,4.9298119,126.79,126.69,110.5198]
[1764599807654,3.29,126.82,126.71,110.5012]
[1764599807854,3.29,126.82,126.72,110.4971]
[1764599808358,0.05394865,126.78,126.76,0.05334234]
[1764599809360,0.05394865,126.78,126.76,7.15424234]
[1764599809950,0.05394865,126.78,126.76,145.85774234]
[1764599810155,10.4256,126.86,126.78,7.0998]
[1764599810552,3.33,126.86,126.78,110.4416]
[1764599811059,0.0507996,126.83,126.81,0.05194331]
[1764599811962,3.33,126.91,126.81,28.27194331]
[1764599812157,3.33,126.91,126.81,28.22]
[1764599812356,3.33,126.9,126.81,28.22]
[1764599812553,3.33,126.88,126.77,7.20234241]
[1764599812760,3.33,126.88,126.78,28.26]
[1764599812963,0.05192457,126.84,126.82,0.05376895]
[1764599814460,3.38192457,126.84,126.82,0.05376895]
[1764599814860,0.05192457,126.84,126.82,0.05376895]
[1764599816069,0.05192457,126.84,126.82,7.15146895]
[1764599816268,0.05192457,126.84,126.82,0.05376895]
[1764599818066,3.38192457,126.84,126.82,0.05376895]
[1764599818571,12.05882457,126.84,126.77,35.44234241]
[1764599818773,10.47882457,126.84,126.77,28.24]
[1764599819073,3.38192457,126.84,126.77,28.24]
[1764599819265,3.38192457,126.84,126.77,35.44234241]
[1764599819472,3.38192457,126.84,126.79,0.05022697]
[1764599819966,0.05192457,126.84,126.79,0.05022697]
[1764599820167,3.33,126.93,126.82,110.4099]
[1764599820477,4.7015637,126.95,126.85,110.3779]
[1764599820673,3.33,126.95,126.85,110.3779]
[1764599820876,3.33,126.99,126.89,110.3461]
[1764599821078,3.33,126.99,126.89,138.5861]
[1764599821378,3.33,126.99,126.84,7.26636243]
[1764599821379,3.33,126.93,126.84,7.26636243]
[1764599821574,3.33,126.9,126.82,35.50636243]
[1764599821775,10.4256,126.86,126.79,14.36556243]
[1764599821975,3.33,126.86,126.79,7.0992]
[1764599822169,3.33,126.86,126.77,7.26636243]
[1764599822376,118.64694402,126.88,126.8,0.05837411]
[1764599822377,3.33,126.82,126.8,0.05837411]
[1764599822576,3.33,126.82,126.8,0.05461644]
[1764599822768,0.05900657,126.83,126.8,0.05461644]
[1764599823870,3.33,126.91,126.81,110.4201]
[1764599824074,10.4236,126.9,126.82,7.0978]
[1764599824267,3.33,126.9,126.79,117.70136243]
[1764599824473,3.33,126.88,126.79,7.26636243]
[1764599824974,0.0585065,126.85,126.82,0.06026136]
[1764599825175,0.0585065,126.85,126.82,110.46616136]
[1764599825367,3.33,126.92,126.84,110.3933]
[1764599825569,10.4223,126.92,126.85,7.0958]
[1764599825780,3.33,126.92,126.84,110.3881]
[1764599826175,3.33,126.92,126.83,110.3968]
[1764599826377,3.38723384,126.89,126.86,0.05358901]
[1764599826577,0.05723384,126.89,126.86,0.05358901]
[1764599826979,0.05723384,126.89,126.86,7.14888901]
[1764599827973,3.38723384,126.89,126.86,0.05358901]
[1764599828776,0.05723384,126.89,126.86,0.05358901]
[1764599828973,0.05723384,126.89,126.86,7.14878901]
[1764599829170,3.38723384,126.89,126.86,0.05358901]
[1764599829775,3.33,126.88,126.8,14.36496243]
[1764599829978,3.33,126.88,126.8,7.0986]
[1764599830178,3.33,126.88,126.8,14.36496243]
[1764599830580,10.4246,126.88,126.79,7.26636243]
[1764599830786,0.05252333,126.85,126.82,0.05822068]
[1764599831090,0.05975846,126.85,126.82,0.05416586]
[1764599831278,3.38975846,126.85,126.82,0.05416586]
[1764599831483,0.05975846,126.85,126.82,0.05416586]
[1764599832084,0.05975846,126.85,126.83,7.0971]
[1764599832402,3.33,126.92,126.83,138.6564]
[1764599832587,3.33,126.92,126.83,145.92276243]
[1764599833091,3.33,126.92,126.83,35.52636243]
[1764599833284,3.33,126.92,126.83,7.26636243]
[1764599833480,3.33,126.92,126.86,0.05966423]
[1764599833481,0.0599481,126.89,126.86,0.05966423]
[1764599833984,0.0599481,126.89,126.86,7.15486423]
[1764599834287,1.37123943,126.99,126.89,110.3502]
[1764599834480,3.33,126.99,126.92,7.0921]
[1764599834992,3.33,126.96,126.88,7.0941]
[1764599835180,3.33,127.0,126.88,110.3579]
[1764599835381,0.05476668,126.95,126.93,0.06057191]
[1764599835580,3.33,126.99,126.93,0.06057191]
[1764599835985,0.05016945,126.97,126.93,0.06057191]
[1764599836184,0.05016945,126.97,126.92,110.3214]
[1764599836185,0.05016945,126.97,126.94,0.06036879]
[1764599837485,0.05016945,126.97,126.94,110.36476879]
[1764599837683,0.05016945,126.97,126.94,0.06036879]
[1764599838988,133.8381,127.09,126.94,0.06036879]
[1764599838989,3.33,127.07,126.95,110.2958]
[1764599839290,3.33,127.05,126.95,110.2958]
[1764599839488,113.553,127.04,126.91,117.59146243]
[1764599839791,3.33,127.03,126.92,28.22]
[1764599839991,0.05628978,126.99,126.96,0.05487956]
[1764599841393,0.05628978,126.99,126.96,7.14477956]
[1764599841592,0.05628978,126.99,126.96,110.33897956]
[1764599841891,10.4849,127.06,126.97,110.2805]
[1764599842091,3.4,127.06,127.0,7.0874]
[1764599842789,3.4,127.06,126.97,7.0889]
[1764599842984,3.4,127.02,126.91,110.3263]
[1764599843184,3.4,126.99,126.9,138.555]
[1764599843587,3.4,126.99,126.9,28.22]
[1764599843785,7.088,127.0,126.88,138.573]
[1764599843786,3.4,126.98,126.88,138.573]
[1764599844094,0.05718402,126.94,126.92,0.05486825]
[1764599844498,3.45718402,126.94,126.92,0.05486825]
[1764599844682,0.05718402,126.94,126.92,0.05486825]
[1764599845799,3.4,127.03,126.93,138.5334]
[1764599845989,3.4,127.03,126.95,110.2955]
[1764599846192,110.2099,127.06,126.95,110.2955]
[1764599846490,10.4844,127.06,126.98,7.0887]
[1764599846690,10.4844,127.06,126.96,110.2862]
[1764599846691,10.4844,127.06,127.01,0.0584007]
[1764599846890,3.4,127.05,127.01,0.0584007]
[1764599847091,3.4,127.04,127.01,0.0584007]
[1764599847286,113.5894,127.08,127.01,0.0584007]
[1764599847486,3.4,127.07,127.01,0.0584007]
[1764599848293,10.4841,127.07,127.01,0.0584007]
[1764599848498,3.38,127.06,127.01,0.0584007]
[1764599849185,3.38,127.05,126.97,7.0892]
[1764599849386,3.38,127.05,126.94,138.5041]
[1764599850193,3.43197962,127.01,126.98,0.05032243]
[1764599850388,3.43197962,127.01,126.9,110.3343]
[1764599850594,3.38,126.98,126.91,7.0927]
[1764599850801,3.38,126.98,126.88,146.83149917]
[1764599851096,3.38,126.97,126.87,35.2946]
[1764599851299,3.38,127.0,126.89,110.3503]
[1764599851498,3.43590589,126.96,126.93,0.05168905]
[1764599852499,0.05590589,126.96,126.93,110.36488905]
[1764599852695,3.38,127.04,126.95,110.2902]
[1764599852901,3.38,127.04,126.96,110.2868]
[1764599853093,3.38,127.04,126.97,28.2]
[1764599853293,3.38,127.04,126.95,28.2]
[1764599853495,3.38,127.04,126.91,110.3304]
[1764599853688,0.05378351,126.99,126.96,0.05169915]
[1764599853898,0.05378351,126.99,126.96,110.3467004]
[1764599854108,0.05378351,126.99,126.97,28.2]
[1764599854493,0.05378351,126.99,126.97,35.2893]
[1764599854803,3.38,127.08,126.97,138.4742]
[1764599854996,7.0841,127.07,126.99,7.0881]
[1764599855202,10.4641,127.07,126.97,138.4773]
[1764599855404,3.38,127.06,126.97,28.2]
[1764599855604,10.4645,127.06,126.97,35.2893]
[1764599855806,10.4645,127.06,127.0,0.06002176]
[1764599855994,3.38,127.06,127.0,0.06002176]
[1764599856196,110.1894,127.08,127.0,0.06002176]
[1764599856197,3.38,127.04,127.0,0.06002176]
[1764599856396,3.38,127.04,127.01,0.05455581]
[1764599856597,3.38,127.08,127.01,0.05455581]
[1764599856801,3.38,127.07,127.01,0.05455581]
[1764599857101,3.38,127.07,127.03,0.05980254]
[1764599857503,1.37007874,127.09,127.03,0.05980254]
[1764599857703,3.38,127.08,127.03,0.05980254]
[1764599857906,3.38,127.07,127.04,0.05910342]
[1764599859807,10.464,127.07,127.04,0.05910342]
[1764599859999,3.38,127.06,127.04,0.05910342]
[1764599860199,3.38,127.06,126.97,110.2758]
[1764599861103,3.38,127.05,127.0,0.05865066]
[1764599861295,0.05670838,127.03,127.0,0.05865066]
[1764599861900,3.38,127.1,127.0,111.89105066]
[1764599862096,3.38,127.09,126.99,28.18]
[1764599862909,3.38,127.09,127.03,0.05277647]
[1764599863112,10.4629,127.09,127.03,0.05277647]
[1764599863914,3.38,127.08,127.03,0.05277647]
[1764599864116,3.38,127.08,127.04,0.05268586]
[1764599864519,3.38,127.05,127.04,0.00268586]
[1764599865811,4.96,127.05,127.04,0.00268586]
[1764599866411,3.38,127.05,127.04,0.00268586]
[1764599866608,4.96,127.05,127.04,0.00268586]
[1764599867115,4.96,127.05,126.93,110.3122]
[1764599867116,3.38,127.01,126.91,7.19808008]
[1764599867311,3.38,127.01,126.9,138.4989]
[1764599867507,3.38,127.0,126.92,7.092]
[1764599867718,3.38,126.96,126.87,117.56008008]
[1764599867919,3.38,126.96,126.86,145.75158008]
[1764599868119,0.0550809,126.92,126.9,0.05877866]
[1764599868314,3.4350809,126.92,126.9,0.05877866]
[1764599868618,0.0550809,126.92,126.9,0.05877866]
[1764599869213,3.4350809,126.92,126.9,0.05877866]
[1764599869413,3.4350809,126.92,126.84,7.0962]
[1764599869617,3.38,126.92,126.84,7.0962]
[1764599870015,3.28,126.91,126.82,7.0978]
[1764599870413,0.05307681,126.88,126.85,0.05750688]
[1764599870618,3.33307681,126.88,126.85,0.05750688]
[1764599871712,0.05307681,126.88,126.85,0.05750688]
[1764599871911,3.28,126.93,126.86,110.3757]
[1764599872113,3.28,126.97,126.86,110.3757]
[1764599872313,3.28,126.97,126.86,7.0953]
[1764599872314,3.28,126.96,126.86,7.0953]
[1764599872517,3.28,126.96,126.87,110.3661]
[1764599872911,3.28,126.96,126.88,7.0941]
[1764599873120,0.05371638,126.93,126.9,0.05698607]
[1764599873919,0.05371638,126.93,126.81,110.4121]
[1764599873920,3.33371638,126.93,126.84,7.19808008]
[1764599874118,3.28,126.9,126.8,7.19808008]
[1764599874319,3.28,126.9,126.79,7.19808008]
[1764599874822,3.28,126.9,126.83,0.05209862]
[1764599874823,0.05694732,126.86,126.83,0.05209862]
[1764599875416,3.28,126.94,126.84,110.3937]
[1764599875618,3.28,126.94,126.86,7.0954]
[1764599875820,3.28,126.94,126.84,110.3937]
[1764599876022,3.28,126.94,126.82,145.78708008]
[1764599876326,3.28,126.92,126.82,138.589]
[1764599876619,0.06003347,126.88,126.86,0.05443171]
[1764599878515,0.06003347,126.88,126.86,117.52533171]
[1764599878921,3.347e-05,126.88,126.86,119.10533171]
[1764599879421,3.347e-05,126.88,126.86,154.48341179]
[1764599879820,3.347e-05,126.88,126.86,156.96354577]
[1764599880026,3.347e-05,126.88,126.87,9.67821406]
[1764599880222,3.347e-05,126.88,126.87,9.64408473]
[1764599880423,3.347e-05,126.88,126.86,14.38570679]
[1764599880719,3.347e-05,126.88,126.78,7.23597508]
[1764599880720,3.28,126.87,126.78,7.23597508]
[1764599880928,3.28,126.87,126.78,28.2]
[1764599881324,3.28,126.87,126.79,7.0992]
[1764599881325,7.0958,126.86,126.79,7.0992]
[1764599881819,3.28,126.87,126.78,145.87977508]
[1764599881820,0.05525321,126.84,126.81,0.05855262]
[1764599882024,0.05525321,126.84,126.81,110.47165262]
[1764599882331,3.28,126.91,126.81,110.47165262]
[1764599882627,3.28,126.91,126.81,110.4131]
[1764599882819,3.28,126.91,126.82,110.4111]
[1764599883126,3.28,126.91,126.85,0.05525394]
[1764599883723,3.28,126.92,126.85,7.15095394]
[1764599883919,3.28,126.88,126.8,7.23597508]
[1764599884123,3.28,126.88,126.77,124.9722211]
[1764599884124,3.28,126.88,126.77,110.4549]
[1764599884827,3.28,126.85,126.79,7.0992]
[1764599885024,3.28,126.83,126.81,0.05700818]
[1764599885924,0.05761545,126.84,126.81,0.05700818]
[1764599886629,110.298,126.96,126.81,0.05700818]
[1764599886630,3.28,126.95,126.86,110.372]
[1764599886829,3.28,126.93,126.84,110.3893]
[1764599887126,3.28,126.93,126.84,28.18]
[1764599887425,3.28,126.91,126.82,110.4112]
[1764599887628,3.28,126.91,126.87,0.05458466]
[1764599887819,3.28,126.95,126.87,0.05458466]
[1764599888024,3.28,126.95,126.9,0.05196562]
[1764599888731,3.28,126.93,126.9,0.05196562]
[1764599888932,3.28,126.93,126.9,0.00196562]
[1764599889130,3.28,126.92,126.83,7.0968]
[1764599889526,3.28,126.91,126.79,7.23597508]
[1764599889730,3.28,126.9,126.79,28.18]
[1764599889923,10.3742,126.89,126.81,7.0982]
[1764599890234,0.0522914,126.86,126.83,0.05319792]
[1764599890843,3.3322914,126.86,126.83,0.05319792]
[1764599891338,0.0522914,126.86,126.83,0.05319792]
[1764599892728,3.3322914,126.86,126.83,0.05319792]
[1764599892928,0.0522914,126.86,126.83,0.05319792]
[1764599893729,3.3322914,126.86,126.83,0.05319792]
[1764599893939,3.3322914,126.86,126.75,110.467]
[1764599894138,3.28,126.86,126.76,28.18]
[1764599894433,3.28,126.89,126.77,220.9004]
[1764599894632,3.28,126.89,126.78,110.4431]
[1764599895033,3.33092483,126.85,126.82,0.06061231]
[1764599895229,3.33014144,126.85,126.82,0.05556528]
[1764599895527,3.33014144,126.85,126.77,7.1002]
[1764599895528,7.0974,126.83,126.77,7.1002]
[1764599895733,3.28,126.85,126.77,7.1002]
[1764599895939,3.28,126.84,126.76,28.18]
[1764599896436,3.28,126.84,126.71,315.4585]
[1764599896437,3.28,126.82,126.71,94.46]
[1764599896736,0.05367303,126.78,126.75,0.05449751]
[1764599896936,3.33367303,126.78,126.75,0.05449751]
[1764599897235,3.28,126.77,126.68,35.2854]
[1764599897444,3.28,126.77,126.68,28.18]
[1764599898026,0.05185055,126.74,126.71,0.05499875]
[1764599898235,0.05081891,126.74,126.71,0.05020143]
[1764599898540,3.28,126.82,126.73,110.4886]
[1764599898731,3.28,126.82,126.72,110.497]
[1764599899237,3.28,126.82,126.73,110.4872]
[1764599899543,0.05302183,126.79,126.76,0.05503365]
[1764599900629,3.17302183,126.79,126.76,0.05503365]
[1764599902135,0.05302183,126.79,126.76,0.05503365]
[1764599903839,3.17302183,126.79,126.76,0.05503365]
[1764599904037,3.17302183,126.79,126.69,28.16]
[1764599904237,3.12,126.79,126.69,28.16]
[1764599904642,10.2197,126.79,126.71,7.1035]